lending/lending_fUSD_20251121
["ID","MTS","AMOUNT","RATE_DAILY","PERIOD"]
[394591839,1763745059112,-3162.0,0.00029102,2]
[394591840,1763745059122,-3000.0,0.00029124,7]
[394591841,1763745059131,-1975.12,0.00029272,30]
[394591842,1763745059141,-908.0,0.00029273,2]
[394591843,1763745059151,-1192.0,0.00029273,2]
[394591844,1763745059160,-2659.0,0.00029273,2]
[394591845,1763745059170,-561.0,0.00029273,2]
[394591846,1763745059179,-6496.0,0.00029273,2]
[394591847,1763745059188,-389.90015136,0.000293,2]
[394591848,1763745059197,-800.0,0.00029398,7]
[394591849,1763745059207,-1516.04188714,0.000294,2]
[394591850,1763745059216,-278.7980569,0.000294,2]
[394591851,1763745059226,-2068.24783429,0.000294,2]
[394591852,1763745059236,-439.08,0.00029482,30]
[394591853,1763745059246,-150.0,0.00029498,2]
[394591854,1763745059255,-1319.0,0.00029498,2]
[394591855,1763745059264,-575.0,0.00029498,2]
[394591856,1763745059274,-609.0,0.00029498,2]
[394591857,1763745059284,-3435.0,0.00029498,2]
[394591858,1763745059294,-822.0,0.00029498,2]
[394591859,1763745059304,-1601.0,0.00029498,2]
[394591860,1763745059313,-659.0,0.00029498,2]
[394591861,1763745059323,-1256.0,0.00029498,2]
[394591862,1763745059332,-154.838469,0.00029498,7]
[394591863,1763745059344,-339.99417222,0.000295,7]
[394591864,1763745059354,-1121.7,0.000295,7]
[394591865,1763745059363,-6751.87,0.000295,2]
[394591866,1763745059372,-152.0,0.0002964,15]
[394591867,1763745059382,-500.0,0.00029658,120]
[394591868,1763745059391,-3000.0,0.00029672,7]
[394591869,1763745059400,-152.32,0.00029834,2]
[394591870,1763745059409,-150.65550955,0.000299,2]
[394591871,1763745059419,-234.66930377,0.0002999,2]
[394591872,1763745059431,-1132.33641948,0.0003,30]
[394591873,1763745059442,-23612.79123141,0.0003,2]
[394591874,1763745059451,-19663.61184942,0.0003,2]
[394591875,1763745059460,-1797.40026056,0.0003,2]
[394591876,1763745059468,-161.22374206,0.0003,2]
[394591877,1763745059477,-151.0,0.0003,2]
[394591878,1763745059486,-1132.08651,0.0003,120]
[394591879,1763745059497,-426.56612961,0.0003,120]
[394591880,1763745059507,-2509.3157121,0.0003,120]
[394591881,1763745059517,-682.49543388,0.0003,120]
[394591882,1763745059527,-5570.00872525,0.0003,2]
[394591883,1763745059536,-195.09793844,0.0003,120]
[394591884,1763745059545,-1064.40534249,0.0003,120]
[394591885,1763745059555,-648.50812146,0.0003,120]
[394591886,1763745059563,-2705.77254234,0.0003,120]
[394591887,1763745059573,-1000.0,0.0003,12]
[394591888,1763745059584,-1081.0,0.0003,12]
[394591889,1763745059593,-1000.0,0.0003,12]
[394591890,1763745059603,-1000.0,0.0003,4]
[394591891,1763745059612,-1000.0,0.0003,3]
[394591892,1763745059622,-1000.0,0.0003,5]
[394591893,1763745059636,-7454.27705985,0.0003,2]
[394591894,1763745059644,-1000.0,0.0003,120]
[394591895,1763745059653,-2134.0,0.0003,120]
[394591896,1763745059663,-756.83,0.0003,7]
[394591897,1763745059674,-317.0,0.0003,30]
[394591898,1763745059684,-4668.5018408,0.0003,2]
[394591899,1763745059694,-1239.13247881,0.0003,120]
[394591900,1763745059705,-28294.95078351,0.0003,2]
[394591901,1763745059715,-426.56612961,0.0003,120]
[394591902,1763745059724,-151.0,0.0003,7]
[394591903,1763745059734,-151.0,0.0003,7]
[394591904,1763745059744,-500.0,0.0003,7]
[394591905,1763745059753,-500.0,0.0003,7]
[394591906,1763745059763,-500.0,0.0003,7]
[394591907,1763745059772,-500.0,0.0003,7]
[394591908,1763745059782,-1510.897708,0.0003,2]
[394591909,1763745059792,-1000.0,0.0003,7]
[394591910,1763745059801,-226.789209,0.00030049,120]
[394591911,1763745059817,-5055.13987105,0.0003013,30]
[394591912,1763745059828,-1465.82376454,0.0003013,30]
[394591913,1763745059837,-1061.62007475,0.0003013,2]
[394591914,1763745059849,-13703.36260438,0.0003013,2]
[394591915,1763745059859,-1488.56724277,0.0003013,5]
[394591916,1763745059868,-627.01601884,0.0003013,2]
[394591917,1763745059878,-5004.68384981,0.0003013,2]
[394591918,1763745059887,-199.53063608,0.0003013,2]
[394591919,1763745059896,-1210.98357649,0.0003013,2]
[394591920,1763745059905,-7648.66935595,0.0003013,2]
[394591921,1763745059915,-200.0,0.0003013,2]
[394591922,1763745059924,-4467.70223787,0.0003013,30]
[394591923,1763745059934,-800.49888397,0.00030136,120]
[394591924,1763745059943,-1475.2,0.00030137,2]
[394591925,1763745059952,-12649.0,0.00030144,2]
[394591926,1763745059962,-1121.7,0.000302,7]
[394591927,1763745059971,-152.0,0.00030344,16]
[394591928,1763745059980,-500.0,0.00030355,120]
[394591929,1763745059990,-446.0,0.00030447,14]
[394591930,1763745059999,-1055.48207517,0.00030567,2]
[394591931,1763745060010,-1210.76,0.00030636,2]
[394591932,1763745060019,-1210.76,0.00030636,2]
[394591933,1763745060029,-1210.76,0.00030636,2]
[394591934,1763745060039,-1210.76,0.00030636,2]
[394591935,1763745060049,-1677.76,0.00030636,2]
[394591936,1763745060060,-1210.76,0.00030636,2]
[394591937,1763745060071,-1210.76,0.00030636,2]
[394591938,1763745060081,-1485.98,0.00030636,2]
[394591939,1763745060092,-300.0,0.00030676,2]
[394591940,1763745060101,-1431.76359535,0.000307,2]
[394591941,1763745060111,-3000.0,0.00030768,7]
[394591942,1763745060121,-167.18070033,0.000308,7]
[394591943,1763745060131,-2582.57547521,0.0003084,2]
[394591944,1763745060141,-211.0,0.0003084,30]
[394591945,1763745060152,-3732.88614076,0.00030888,60]
[394591946,1763745060162,-11090.77148227,0.00031,2]
[394591947,1763745060173,-2000.0,0.00031,120]
[394591948,1763745060183,-600.0,0.00031,2]
[394591949,1763745060193,-472.356,0.00031,31]
[394591950,1763745060204,-472.356,0.00031,31]
[394591951,1763745060214,-472.356,0.00031,31]
[394591952,1763745060223,-472.356,0.00031,31]
[394591953,1763745060233,-583.77562454,0.00031039,2]
[394591954,1763745060243,-800.0,0.00031042,7]
[394591955,1763745060253,-152.0,0.00031047,17]
[394591956,1763745060264,-500.0,0.00031051,120]
[394591957,1763745060274,-300.0,0.00031171,2]
[394591958,1763745060283,-287.614749,0.00031172,31]
[394591959,1763745060293,-574.491917,0.00031172,31]
[394591960,1763745060304,-574.491917,0.00031172,31]
[394591961,1763745060314,-574.491917,0.00031172,31]
[394591962,1763745060324,-574.491917,0.00031172,31]
[394591963,1763745060334,-3292.791222,0.00031172,28]
[394591964,1763745060346,-3292.791222,0.00031172,28]
[394591965,1763745060356,-3292.791222,0.00031172,28]
[394591966,1763745060365,-3292.791222,0.00031172,28]
[394591967,1763745060375,-151.0,0.00031172,31]
[394591968,1763745060385,-151.0,0.00031172,31]
[394591969,1763745060395,-551.5,0.00031189,30]
[394591970,1763745060404,-151.0,0.00031316,31]
[394591971,1763745060413,-151.0,0.00031316,31]
[394591972,1763745060422,-306.652235,0.00031316,31]
[394591973,1763745060431,-306.652235,0.00031316,31]
[394591974,1763745060440,-306.652235,0.00031316,31]
[394591975,1763745060450,-306.652235,0.00031316,31]
[394591976,1763745060459,-3000.0,0.00031316,7]
[394591977,1763745060470,-150.0,0.00031428,2]
[394591978,1763745060479,-19453.08158986,0.0003143,4]
[394591979,1763745060490,-161.638426,0.0003143,31]
[394591980,1763745060499,-161.638426,0.0003143,31]
[394591981,1763745060509,-161.638426,0.0003143,31]
[394591982,1763745060518,-161.638426,0.0003143,31]
[394591983,1763745060527,-151.0,0.0003143,31]
[394591984,1763745060537,-151.0,0.0003143,31]
[394591985,1763745060546,-155.14276,0.0003143,31]
[394591986,1763745060556,-151.0,0.0003143,31]
[394591987,1763745060566,-151.0,0.0003143,31]
[394591988,1763745060575,-151.0,0.0003143,31]
[394591989,1763745060584,-176.210487,0.0003143,31]
[394591990,1763745060598,-153.531833,0.0003143,31]
[394591991,1763745060608,-151.0,0.0003143,31]
[394591992,1763745060617,-151.0,0.0003143,31]
[394591993,1763745060629,-150.0,0.0003149,2]
[394591994,1763745060644,-150.0,0.00031498,2]
[394591995,1763745060653,-195.19562507,0.000315,2]
[394591996,1763745060663,-150.0,0.000315,2]
[394591997,1763745060734,-717.44752753,0.000315,120]
[394591998,1763745060745,-169.64,0.00031502,2]
[394591999,1763745060756,-451.15,0.00031507,120]
[394592000,1763745060765,-500.0,0.00031747,120]
[394592001,1763745060775,-152.0,0.0003175,18]
[394592002,1763745060792,-200.0,0.00031783,2]
[394592003,1763745060801,-200.0,0.00031783,2]
[394592004,1763745060811,-200.0,0.00031783,2]
[394592005,1763745060820,-200.0,0.00031784,2]
[394592006,1763745060829,-200.0,0.00031786,2]
[394592007,1763745060838,-200.0,0.00031788,2]
[394592008,1763745060851,-200.0,0.0003179,2]
[394592009,1763745060860,-200.0,0.00031792,2]
[394592010,1763745060870,-200.0,0.00031794,2]
[394592011,1763745060879,-200.0,0.00031794,2]
[394592012,1763745060888,-2000.0,0.000318,2]
[394592013,1763745060898,-655.0,0.00031833,3]
[394592014,1763745060907,-4708.11480531,0.00031953,120]
[394592015,1763745060916,-439.08,0.00031977,30]
[394592016,1763745060926,-3422.56719444,0.00032,2]
[394592017,1763745060935,-2189.19506536,0.00032,120]
[394592018,1763745060944,-1000.0,0.00032,120]
[394592019,1763745060953,-2000.0,0.00032,120]
[394592020,1763745060963,-639.0,0.00032,120]
[394592021,1763745060972,-701.23,0.0003215,2]
[394592022,1763745060982,-701.23,0.0003215,2]
[394592023,1763745060992,-701.23,0.0003215,2]
[394592024,1763745061003,-701.23,0.0003215,2]
[394592025,1763745061014,-701.23,0.0003215,2]
[394592026,1763745061024,-701.23,0.0003215,2]
[394592027,1763745061038,-936.54,0.0003215,2]
[394592028,1763745061048,-701.23,0.0003215,2]
[394592029,1763745061058,-701.23,0.0003215,2]
[394592030,1763745061067,-701.23,0.0003215,2]
[394592031,1763745061077,-701.23,0.0003215,2]
[394592032,1763745061086,-908.0,0.00032273,2]
[394592033,1763745061100,-1192.0,0.00032273,2]
[394592034,1763745061109,-2659.0,0.00032273,2]
[394592035,1763745061118,-561.0,0.00032273,2]
[394592036,1763745061128,-6496.0,0.00032273,2]
[394592037,1763745061138,-150.0,0.0003228,2]
[394592038,1763745061148,-198.89,0.00032281,2]
[394592039,1763745061158,-884.09373685,0.000323,2]
[394592040,1763745061168,-3000.0,0.00032412,7]
[394592041,1763745061178,-500.0,0.00032444,120]
[394592042,1763745061189,-152.0,0.00032453,19]
[394592043,1763745061199,-150.0,0.00032498,2]
[394592044,1763745061209,-1319.0,0.00032498,2]
[394592045,1763745061219,-575.0,0.00032498,2]
[394592046,1763745061229,-609.0,0.00032498,2]
[394592047,1763745061239,-3435.0,0.00032498,2]
[394592048,1763745061250,-822.0,0.00032498,2]
[394592049,1763745061260,-1601.0,0.00032498,2]
[394592050,1763745061270,-659.0,0.00032498,2]
[394592051,1763745061280,-1256.0,0.00032498,2]
[394592052,1763745061291,-261.185169,0.00032498,31]
[394592053,1763745061301,-261.185169,0.00032498,31]
[394592054,1763745061312,-261.185169,0.00032498,31]
[394592055,1763745061322,-261.185169,0.00032498,31]
[394592056,1763745061332,-800.0,0.00032686,7]
[394592057,1763745061342,-4775.32718315,0.000328,2]
[394592058,1763745061362,-211.0,0.0003286,30]
[394592059,1763745061372,-340.95,0.00032877,2]
[394592060,1763745061384,-1475.2,0.00032877,2]
[394592061,1763745061395,-337.197741,0.00032877,31]
[394592062,1763745061406,-337.197741,0.00032877,31]
[394592063,1763745061416,-337.197741,0.00032877,31]
[394592064,1763745061426,-337.197741,0.00032877,31]
[394592065,1763745061436,-337.197741,0.00032877,31]
[394592066,1763745061446,-337.197741,0.00032877,31]
[394592067,1763745061456,-337.197741,0.00032877,31]
[394592068,1763745061467,-337.197741,0.00032877,31]
[394592069,1763745061477,-337.197741,0.00032877,31]
[394592070,1763745061487,-337.197741,0.00032877,31]
[394592071,1763745061497,-337.197741,0.00032877,31]
[394592072,1763745061507,-337.197741,0.00032877,31]
[394592073,1763745061517,-337.197741,0.00032877,31]
[394592074,1763745061526,-337.197741,0.00032877,31]
[394592075,1763745061535,-337.197741,0.00032877,31]
[394592076,1763745061545,-337.197741,0.00032877,31]
[394592077,1763745061555,-300.0,0.00032877,120]
[394592078,1763745061565,-500.0,0.00032877,2]
[394592079,1763745061575,-500.0,0.00032877,7]
[394592080,1763745061586,-500.0,0.00032877,7]
[394592081,1763745061601,-500.0,0.00032877,7]
[394592082,1763745061612,-3000.0,0.0003296,7]
[394592083,1763745061624,-1540.58622792,0.00033,2]
[394592084,1763745061635,-151.82555808,0.00033,2]
[394592085,1763745061645,-1000.0,0.00033,8]
[394592086,1763745061655,-1000.0,0.00033,5]
[394592087,1763745061665,-3997.64167738,0.00033,30]
[394592088,1763745061676,-2000.0,0.00033,120]
[394592089,1763745061686,-6751.87,0.00033,2]
[394592090,1763745061699,-30817.28,0.00033,14]
[394592091,1763745061711,-650.0,0.00033,2]
[394592092,1763745061722,-548.6851,0.00033,14]
[394592093,1763745061732,-531.539002,0.00033,8]
[394592094,1763745061742,-151.0,0.00033,31]
[394592095,1763745061754,-151.0,0.00033,31]
[394592096,1763745061763,-151.0,0.00033,31]
[394592097,1763745061772,-151.0,0.00033,31]
[394592098,1763745061782,-196.922844,0.00033,31]
[394592099,1763745061792,-500.0,0.00033014,2]
[394592100,1763745061802,-389.90015136,0.000331,2]
[394592101,1763745061811,-177.54,0.00033102,2]
[394592102,1763745061822,-359.43,0.00033102,2]
[394592103,1763745061832,-177.54,0.00033102,2]
[394592104,1763745061842,-170.49,0.00033102,2]
[394592105,1763745061855,-701.23,0.00033109,2]
[394592106,1763745061865,-701.23,0.00033109,2]
[394592107,1763745061874,-701.23,0.00033109,2]
[394592108,1763745061884,-1419.0,0.00033109,2]
[394592109,1763745061894,-701.23,0.00033109,2]
[394592110,1763745061903,-701.23,0.00033109,2]
[394592111,1763745061913,-701.23,0.00033109,2]
[394592112,1763745061923,-701.23,0.00033109,2]
[394592113,1763745061933,-701.23,0.00033109,2]
[394592114,1763745061942,-17709.0,0.00033139,3]
[394592115,1763745061952,-500.0,0.0003314,120]
[394592116,1763745061962,-500.0,0.00033151,2]
[394592117,1763745061972,-152.0,0.00033156,20]
[394592118,1763745061981,-1000.0,0.00033165,2]
[394592119,1763745061990,-161.0,0.000332,2]
[394592120,1763745062000,-500.0,0.00033288,2]
[394592121,1763745062011,-500.0,0.00033425,2]
[394592122,1763745062021,-1197.77820256,0.000335,2]
[394592123,1763745062032,-150.0,0.00033502,30]
[394592124,1763745062043,-150.0,0.00033502,30]
[394592125,1763745062056,-150.0,0.00033502,30]
[394592126,1763745062070,-150.0,0.00033502,30]
[394592127,1763745062080,-150.0,0.00033502,30]
[394592128,1763745062090,-150.0,0.00033502,30]
[394592129,1763745062105,-150.0,0.00033502,30]
[394592130,1763745062115,-150.0,0.00033502,30]
[394592131,1763745062125,-150.0,0.00033502,30]
[394592132,1763745062135,-280.42757854,0.00033502,30]
[394592133,1763745062144,-500.0,0.00033562,2]
[394592134,1763745062154,-500.0,0.00033699,2]
[394592135,1763745062165,-1055.48207517,0.00033733,2]
[394592136,1763745062175,-615.40845425,0.000338,120]
[394592137,1763745062185,-500.0,0.00033836,2]
[394592138,1763745062195,-500.0,0.00033836,120]
[394592139,1763745062205,-152.0,0.00033859,21]
[394592140,1763745062216,-1024.56234772,0.000339,30]
[394592141,1763745062226,-300.0,0.00033932,2]
[394592142,1763745062236,-300.0,0.00033932,2]
[394592143,1763745062246,-150.0,0.00033932,2]
[394592144,1763745062256,-341.5,0.00033932,2]
[394592145,1763745062266,-150.0,0.00033932,2]
[394592146,1763745062276,-150.0,0.00033932,2]
[394592147,1763745062286,-150.0,0.00033932,2]
[394592148,1763745062296,-150.0,0.00033932,2]
[394592149,1763745062307,-150.0,0.00033932,2]
[394592150,1763745062316,-150.0,0.00033932,2]
[394592151,1763745062327,-150.0,0.00033932,2]
[394592152,1763745062336,-150.0,0.00033932,2]
[394592153,1763745062354,-150.0,0.00033932,2]
[394592154,1763745062365,-150.0,0.00033932,2]
[394592155,1763745062376,-417.25,0.00033935,2]
[394592156,1763745062387,-833.56,0.00033935,2]
[394592157,1763745062398,-488.02,0.00033968,2]
[394592158,1763745062408,-354.99,0.00033968,2]
[394592159,1763745062418,-354.99,0.00033968,2]
[394592160,1763745062430,-177.54,0.00033968,2]
[394592161,1763745062440,-354.69,0.00033968,2]
[394592162,1763745062450,-500.0,0.00033973,2]
[394592163,1763745062460,-2000.0,0.00033999,120]
[394592164,1763745062470,-1000.0,0.00034,120]
[394592165,1763745062480,-2000.0,0.00034,120]
[394592166,1763745062491,-1210.76,0.00034029,2]
[394592167,1763745062504,-1210.76,0.00034029,2]
[394592168,1763745062523,-1210.76,0.00034029,2]
[394592169,1763745062547,-2420.7,0.00034029,2]
[394592170,1763745062558,-2182.97,0.00034046,2]
[394592171,1763745062568,-3000.0,0.00034056,7]
[394592172,1763745062578,-701.23,0.00034068,2]
[394592173,1763745062587,-701.23,0.00034068,2]
[394592174,1763745062602,-701.23,0.00034068,2]
[394592175,1763745062612,-701.23,0.00034068,2]
[394592176,1763745062623,-1450.93,0.00034068,2]
[394592177,1763745062636,-1401.2,0.00034068,2]
[394592178,1763745062646,-142576.18359998,0.000341,30]
[394592179,1763745062656,-500.0,0.0003411,2]
[394592180,1763745062667,-500.0,0.00034247,2]
[394592181,1763745062676,-1975.12,0.00034319,30]
[394592182,1763745062686,-800.0,0.0003433,7]
[394592183,1763745062696,-500.0,0.00034384,2]
[394592184,1763745062708,-9185.0,0.00034463,7]
[394592185,1763745062718,-439.08,0.00034471,30]
[394592186,1763745062729,-1711.15515212,0.0003449,2]
[394592187,1763745062739,-2233.64636406,0.000345,14]
[394592188,1763745062749,-500.0,0.00034521,2]
[394592189,1763745062759,-500.0,0.00034521,2]
[394592190,1763745062768,-500.0,0.00034533,120]
[394592191,1763745062779,-152.0,0.00034562,22]
[394592192,1763745062789,-3000.0,0.00034604,7]
[394592193,1763745062800,-200.0,0.0003465,120]
[394592194,1763745062809,-500.0,0.00034658,2]
[394592195,1763745062819,-150.0,0.00034754,2]
[394592196,1763745062828,-300.0,0.00034754,2]
[394592197,1763745062838,-300.0,0.00034754,2]
[394592198,1763745062850,-300.93,0.00034754,2]
[394592199,1763745062860,-150.0,0.00034754,2]
[394592200,1763745062871,-150.0,0.00034754,2]
[394592201,1763745062881,-150.0,0.00034754,2]
[394592202,1763745062890,-150.0,0.00034754,2]
[394592203,1763745062901,-150.0,0.00034754,2]
[394592204,1763745062910,-150.0,0.00034754,2]
[394592205,1763745062921,-150.0,0.00034754,2]
[394592206,1763745062931,-150.0,0.00034754,2]
[394592207,1763745062941,-150.0,0.00034754,2]
[394592208,1763745062952,-227.07,0.00034754,2]
[394592209,1763745062962,-150.0,0.00034754,2]
[394592210,1763745062972,-150.0,0.00034754,2]
[394592211,1763745062982,-374.08,0.00034757,2]
[394592212,1763745062993,-2419.06,0.00034757,2]
[394592213,1763745063003,-1210.76,0.00034757,2]
[394592214,1763745063013,-1210.76,0.00034757,2]
[394592215,1763745063025,-1210.76,0.00034757,2]
[394592216,1763745063035,-1210.76,0.00034757,2]
[394592217,1763745063046,-1210.76,0.00034757,2]
[394592218,1763745063058,-1210.76,0.00034757,2]
[394592219,1763745063080,-169.55,0.00034757,2]
[394592220,1763745063099,-1210.76,0.00034757,2]
[394592221,1763745063110,-335.57,0.00034758,2]
[394592222,1763745063120,-169.64,0.00034758,2]
[394592223,1763745063131,-169.64,0.00034758,2]
[394592224,1763745063142,-169.64,0.00034758,2]
[394592225,1763745063152,-169.64,0.00034758,2]
[394592226,1763745063163,-174.08,0.00034758,2]
[394592227,1763745063173,-417.25,0.00034758,2]
[394592228,1763745063184,-302.33,0.00034785,2]
[394592229,1763745063195,-550.79,0.00034786,2]
[394592230,1763745063205,-550.79,0.00034786,2]
[394592231,1763745063215,-550.79,0.00034786,2]
[394592232,1763745063226,-550.79,0.00034786,2]
[394592233,1763745063235,-500.0,0.00034795,2]
[394592234,1763745063246,-1210.76,0.00034868,2]
[394592235,1763745063256,-211.0,0.0003488,30]
[394592236,1763745063266,-500.0,0.00034932,2]
[394592237,1763745063275,-402.62494129,0.00035,2]
[394592238,1763745063285,-39595.61,0.00035,2]
[394592239,1763745063295,-5234.671278,0.00035,14]
[394592240,1763745063305,-1000.0,0.00035,16]
[394592241,1763745063316,-426.0,0.00035,9]
[394592242,1763745063327,-150.0,0.00035,2]
[394592243,1763745063338,-2000.0,0.00035,120]
[394592244,1763745063351,-1000.0,0.00035,60]
[394592245,1763745063361,-6524.63003618,0.00035,120]
[394592246,1763745063371,-11596.61884218,0.00035,30]
[394592247,1763745063381,-700.0,0.00035,2]
[394592248,1763745063391,-270.0,0.00035,120]
[394592249,1763745063401,-1000.0,0.00035,7]
[394592250,1763745063411,-957.36,0.00035028,2]
[394592251,1763745063421,-500.0,0.00035069,2]
[394592252,1763745063432,-7709.99202847,0.000351,30]
[394592253,1763745063442,-500.0,0.00035206,2]
[394592254,1763745063450,-500.0,0.00035229,120]
[394592255,1763745063459,-152.0,0.00035266,23]
[394592256,1763745063468,-908.0,0.00035273,2]
[394592257,1763745063477,-1192.0,0.00035273,2]
[394592258,1763745063486,-2659.0,0.00035273,2]
[394592259,1763745063495,-561.0,0.00035273,2]
[394592260,1763745063668,-6496.0,0.00035273,2]
[394592261,1763745063679,-500.0,0.00035343,2]
[394592262,1763745063692,-153.0,0.0003538,2]
[394592263,1763745063704,-451.15,0.00035445,120]
[394592264,1763745063714,-235.33869814,0.0003548,2]
[394592265,1763745063724,-1319.0,0.00035498,2]
[394592266,1763745063734,-575.0,0.00035498,2]
[394592267,1763745063745,-609.0,0.00035498,2]
[394592268,1763745063755,-3435.0,0.00035498,2]
[394592269,1763745063766,-822.0,0.00035498,2]
[394592270,1763745063776,-1601.0,0.00035498,2]
[394592271,1763745063785,-659.0,0.00035498,2]
[394592272,1763745063795,-1256.0,0.00035498,2]
[394592273,1763745063805,-2041.686638,0.00035499,120]
[394592274,1763745063814,-2000.0,0.000355,2]
[394592275,1763745063823,-169.64,0.0003558,2]
[394592276,1763745063833,-169.64,0.0003558,2]
[394592277,1763745063847,-169.64,0.0003558,2]
[394592278,1763745063856,-169.64,0.0003558,2]
[394592279,1763745063866,-169.64,0.0003558,2]
[394592280,1763745063875,-169.64,0.0003558,2]
[394592281,1763745063885,-169.64,0.0003558,2]
[394592282,1763745063894,-169.64,0.0003558,2]
[394592283,1763745063904,-550.79,0.000356,2]
[394592284,1763745063913,-550.79,0.000356,2]
[394592285,1763745063923,-550.79,0.000356,2]
[394592286,1763745063933,-151.0,0.00035616,14]
[394592287,1763745063942,-1720.93072622,0.00035616,120]
[394592288,1763745063952,-500.0,0.00035616,2]
[394592289,1763745063961,-500.0,0.00035616,60]
[394592290,1763745063971,-500.0,0.00035616,7]
[394592291,1763745063980,-500.0,0.00035616,7]
[394592292,1763745063990,-500.0,0.00035616,7]
[394592293,1763745063999,-450.0,0.00035616,7]
[394592294,1763745064009,-500.0,0.00035616,7]
[394592295,1763745064018,-500.0,0.00035616,7]
[394592296,1763745064028,-500.0,0.00035616,7]
[394592297,1763745064038,-500.0,0.00035616,7]
[394592298,1763745064048,-500.0,0.00035616,7]
[394592299,1763745064057,-500.0,0.00035616,7]
[394592300,1763745064067,-300.0,0.00035616,120]
[394592301,1763745064077,-1475.2,0.00035616,2]
[394592302,1763745064086,-287.25,0.00035687,2]
[394592303,1763745064098,-1832.13,0.00035687,2]
[394592304,1763745064107,-3000.0,0.000357,7]
[394592305,1763745064117,-500.0,0.00035753,2]
[394592306,1763745064126,-500.0,0.00035753,60]
[394592307,1763745064135,-1000.0,0.000358,120]
[394592308,1763745064145,-279.42,0.00035804,2]
[394592309,1763745064155,-731.97957,0.00035888,30]
[394592310,1763745064164,-500.0,0.0003589,2]
[394592311,1763745064174,-500.0,0.0003589,60]
[394592312,1763745064184,-199.0,0.0003589,7]
[394592313,1763745064193,-500.0,0.00035925,120]
[394592314,1763745064203,-152.0,0.00035969,24]
[394592315,1763745064212,-235.11831344,0.00035969,5]
[394592316,1763745064222,-771.0,0.0003597,120]
[394592317,1763745064231,-800.0,0.00035974,7]
[394592318,1763745064241,-771.0,0.0003598,120]
[394592319,1763745064251,-771.0,0.0003598,120]
[394592320,1763745064260,-701.23,0.00035986,2]
[394592321,1763745064269,-701.23,0.00035986,2]
[394592322,1763745064278,-701.23,0.00035986,2]
[394592323,1763745064288,-701.23,0.00035986,2]
[394592324,1763745064298,-1402.1,0.00035986,2]
[394592325,1763745064307,-771.0,0.0003599,120]
[394592326,1763745064317,-771.0,0.0003599,120]
[394592327,1763745064326,-188.0,0.00036,5]
[394592328,1763745064335,-79981.75938074,0.00036,2]
[394592329,1763745064349,-1033.7,0.00036,2]
[394592330,1763745064358,-10731.61246999,0.00036,2]
[394592331,1763745064368,-163.03084263,0.00036,5]
[394592332,1763745064377,-300.0,0.00036,120]
[394592333,1763745064386,-1000.0,0.00036,120]
[394592334,1763745064395,-209.75875413,0.00036,2]
[394592335,1763745064404,-1121.7,0.00036,14]
[394592336,1763745064414,-151.0,0.00036,31]
[394592337,1763745064424,-191.483288,0.00036,31]
[394592338,1763745064434,-500.0,0.00036,30]